fUST/lending_fUST_20250518
["ID","MTS","AMOUNT","RATE_DAILY","PERIOD"]
[361477504,1747581036497,-450.0,0.00013835,2]
[361477505,1747581036507,-846.34,0.00013835,2]
[361477506,1747581036516,-450.0,0.00013835,2]
[361477507,1747581036525,-450.0,0.00013835,2]
[361477508,1747581036535,-565.83,0.00013835,2]
[361477509,1747581036544,-450.0,0.00013835,2]
[361477510,1747581036554,-450.0,0.00013835,2]
[361477511,1747581036564,-315.54,0.00013835,2]
[361477512,1747581036573,-307.08,0.00013835,2]
[361477513,1747581036583,-450.0,0.00013835,2]
[361477514,1747581036593,-450.0,0.00013835,2]
[361477515,1747581036603,-450.0,0.00013835,2]
[361477516,1747581036613,-1146.45,0.00013835,2]
[361477517,1747581036622,-450.0,0.00013835,2]
[361477518,1747581036632,-1483.49,0.00013835,2]
[361477519,1747581036641,-450.0,0.00013835,2]
[361477520,1747581036650,-450.0,0.00013835,2]
[361477521,1747581036768,-775.23,0.00013835,2]
[361477522,1747581036779,-450.0,0.00013835,2]
[361477523,1747581036788,-450.0,0.00013835,2]
[361477524,1747581036798,-450.0,0.00013835,2]
[361477525,1747581036808,-450.0,0.00013835,2]
[361477526,1747581036818,-450.0,0.00013835,2]
[361477527,1747581036827,-713.94802478,0.00013921,2]
[361477528,1747581036837,-677.59,0.00013971,2]
[361477529,1747581036847,-677.59,0.00013971,2]
[361477530,1747581036856,-500.0,0.00013971,2]
[361477531,1747581036866,-500.0,0.00013971,2]
[361477532,1747581036875,-189.087624,0.00013972,2]
[361477533,1747581036885,-450.0,0.00013972,2]
[361477534,1747581036895,-450.0,0.00013972,2]
[361477535,1747581036904,-450.0,0.00013972,2]
[361477536,1747581036913,-307.88,0.00013972,2]
[361477537,1747581036923,-450.0,0.00013972,2]
[361477538,1747581036933,-450.0,0.00013972,2]
[361477539,1747581036942,-529.9,0.00013972,2]
[361477540,1747581036951,-450.0,0.00013972,2]
[361477541,1747581036961,-450.0,0.00013972,2]
[361477542,1747581036971,-450.0,0.00013972,2]
[361477543,1747581036980,-450.0,0.00013972,2]
[361477544,1747581036989,-450.0,0.00013972,2]
[361477545,1747581036999,-450.0,0.00013972,2]
[361477546,1747581037008,-450.0,0.00013972,2]
[361477547,1747581037018,-450.0,0.00013972,2]
[361477548,1747581037027,-450.0,0.00013972,2]
[361477549,1747581037036,-450.0,0.00013972,2]
[361477550,1747581037045,-477.17,0.00013972,2]
[361477551,1747581037054,-450.0,0.00013972,2]
[361477552,1747581037064,-450.0,0.00013972,2]
[361477553,1747581037073,-450.0,0.00013972,2]
[361477554,1747581037082,-867.57,0.00013972,2]
[361477555,1747581037091,-450.0,0.00013972,2]
[361477556,1747581037102,-969.45,0.00013972,2]
[361477557,1747581037113,-450.0,0.00013972,2]
[361477558,1747581037124,-450.0,0.00013972,2]
[361477559,1747581037134,-2835.5,0.00013972,2]
[361477560,1747581037143,-221.35002777,0.00013972,2]
[361477561,1747581037152,-5358.41,0.00013972,2]
[361477562,1747581037161,-450.0,0.00013972,2]
[361477563,1747581037171,-1124.46,0.00013972,2]
[361477564,1747581037180,-467.32,0.00013972,2]
[361477565,1747581037190,-1699.94,0.00013972,2]
[361477566,1747581037199,-2102.31,0.00013972,2]
[361477567,1747581037210,-450.0,0.00013972,2]
[361477568,1747581037220,-450.0,0.00013972,2]
[361477569,1747581037229,-450.0,0.00013972,2]
[361477570,1747581037238,-450.0,0.00013972,2]
[361477571,1747581037248,-231.82,0.00013972,2]
[361477572,1747581037257,-450.0,0.00013972,2]
[361477573,1747581037266,-263.6,0.00013972,2]
[361477574,1747581037275,-273.2,0.00013972,2]
[361477575,1747581037284,-272.09,0.00013972,2]
[361477576,1747581037293,-450.0,0.00013972,2]
[361477577,1747581037302,-450.0,0.00013972,2]
[361477578,1747581037311,-450.0,0.00013972,2]
[361477579,1747581037320,-450.0,0.00013972,2]
[361477580,1747581037329,-450.0,0.00013972,2]
[361477581,1747581037338,-450.0,0.00013972,2]
[361477582,1747581037347,-450.0,0.00013972,2]
[361477583,1747581037356,-450.0,0.00013972,2]
[361477584,1747581037365,-178.79,0.00013972,2]
[361477585,1747581037374,-450.0,0.00013972,2]
[361477586,1747581037383,-704.0,0.00013972,2]
[361477587,1747581037393,-517.85,0.00013972,2]
[361477588,1747581037402,-450.0,0.00013972,2]
[361477589,1747581037411,-846.34,0.00013972,2]
[361477590,1747581037420,-450.0,0.00013972,2]
[361477591,1747581037430,-450.0,0.00013972,2]
[361477592,1747581037439,-450.0,0.00013972,2]
[361477593,1747581037448,-450.0,0.00013972,2]
[361477594,1747581037458,-450.0,0.00013972,2]
[361477595,1747581037468,-450.0,0.00013972,2]
[361477596,1747581037478,-450.0,0.00013972,2]
[361477597,1747581037488,-1146.45,0.00013972,2]
[361477598,1747581037498,-450.0,0.00013972,2]
[361477599,1747581037508,-1483.49,0.00013972,2]
[361477600,1747581037517,-151.65,0.00013972,2]
[361477601,1747581037527,-450.0,0.00013972,2]
[361477602,1747581037536,-775.23,0.00013972,2]
[361477603,1747581037546,-450.0,0.00013972,2]
[361477604,1747581037555,-450.0,0.00013972,2]
[361477605,1747581037565,-450.0,0.00013972,2]
[361477606,1747581037575,-450.0,0.00013972,2]
[361477607,1747581037585,-450.0,0.00013972,2]
[361477608,1747581037594,-953.8042476,0.00014,3]
[361477609,1747581037604,-151.0,0.000141,2]
[361477610,1747581037613,-677.59,0.00014108,2]
[361477611,1747581037623,-486.29697092,0.00014108,2]
[361477612,1747581037632,-151.0,0.00014109,2]
[361477613,1747581037642,-450.0,0.00014109,2]
[361477614,1747581037651,-152.67,0.00014109,2]
[361477616,1747581037661,-177.82564432,0.00014109,2]
[361477617,1747581037671,-450.0,0.00014109,2]
[361477619,1747581037680,-450.0,0.00014109,2]
[361477621,1747581037691,-186.93,0.00014109,2]
[361477623,1747581037701,-450.0,0.00014109,2]
[361477625,1747581037711,-450.0,0.00014109,2]
[361477627,1747581037721,-382.78,0.00014109,2]
[361477629,1747581037732,-450.0,0.00014109,2]
[361477631,1747581037741,-450.0,0.00014109,2]
[361477632,1747581037751,-450.0,0.00014109,2]
[361477634,1747581037760,-450.0,0.00014109,2]
[361477635,1747581037769,-450.0,0.00014109,2]
[361477636,1747581037778,-450.0,0.00014109,2]
[361477637,1747581037788,-477.17,0.00014109,2]
[361477638,1747581037797,-450.0,0.00014109,2]
[361477639,1747581037806,-450.0,0.00014109,2]
[361477640,1747581037815,-450.0,0.00014109,2]
[361477641,1747581037825,-867.57,0.00014109,2]
[361477642,1747581037834,-450.0,0.00014109,2]
[361477643,1747581037844,-969.45,0.00014109,2]
[361477644,1747581037854,-450.0,0.00014109,2]
[361477645,1747581037863,-450.0,0.00014109,2]
[361477646,1747581037873,-2835.5,0.00014109,2]
[361477647,1747581037883,-5358.41,0.00014109,2]
[361477648,1747581037892,-450.0,0.00014109,2]
[361477649,1747581037901,-1124.46,0.00014109,2]
[361477650,1747581037910,-467.32,0.00014109,2]
[361477651,1747581037919,-1699.94,0.00014109,2]
[361477653,1747581037929,-2102.31,0.00014109,2]
[361477655,1747581037938,-450.0,0.00014109,2]
[361477657,1747581037947,-450.0,0.00014109,2]
[361477658,1747581037956,-450.0,0.00014109,2]
[361477660,1747581037965,-450.0,0.00014109,2]
[361477662,1747581037974,-450.0,0.00014109,2]
[361477664,1747581037983,-450.0,0.00014109,2]
[361477666,1747581037992,-450.0,0.00014109,2]
[361477668,1747581038002,-450.0,0.00014109,2]
[361477670,1747581038011,-450.0,0.00014109,2]
[361477672,1747581038020,-450.0,0.00014109,2]
[361477674,1747581038029,-450.0,0.00014109,2]
[361477676,1747581038038,-450.0,0.00014109,2]
[361477678,1747581038048,-450.0,0.00014109,2]
[361477680,1747581038058,-450.0,0.00014109,2]
[361477682,1747581038067,-704.0,0.00014109,2]
[361477684,1747581038076,-450.0,0.00014109,2]
[361477686,1747581038085,-846.34,0.00014109,2]
[361477688,1747581038094,-450.0,0.00014109,2]
[361477690,1747581038104,-450.0,0.00014109,2]
[361477692,1747581038116,-450.0,0.00014109,2]
[361477694,1747581038125,-450.0,0.00014109,2]
[361477696,1747581038134,-450.0,0.00014109,2]
[361477698,1747581038143,-450.0,0.00014109,2]
[361477700,1747581038154,-450.0,0.00014109,2]
[361477702,1747581038163,-1146.45,0.00014109,2]
[361477704,1747581038173,-151.0,0.00014109,2]
[361477706,1747581038182,-151.0,0.00014109,2]
[361477708,1747581038191,-208.34,0.00014109,2]
[361477710,1747581038201,-1483.49,0.00014109,2]
[361477712,1747581038210,-450.0,0.00014109,2]
[361477714,1747581038219,-775.23,0.00014109,2]
[361477716,1747581038228,-353.5,0.00014109,2]
[361477718,1747581038238,-450.0,0.00014109,2]
[361477720,1747581038247,-151.0,0.00014109,2]
[361477722,1747581038256,-151.0,0.00014109,2]
[361477724,1747581038265,-176.99,0.00014109,2]
[361477726,1747581038274,-223.54,0.00014109,2]
[361477728,1747581038285,-450.0,0.00014109,2]
[361477730,1747581038294,-713.94802478,0.00014146,2]
[361477732,1747581038303,-300.0,0.00014159,2]
[361477734,1747581038312,-189.087624,0.00014215,2]
[361477736,1747581038321,-2649.7,0.00014215,2]
[361477738,1747581038330,-2649.7,0.00014215,2]
[361477740,1747581038339,-2649.7,0.00014215,2]
[361477742,1747581038348,-2649.7,0.00014215,2]
[361477744,1747581038357,-2649.7,0.00014215,2]
[361477746,1747581038366,-2649.7,0.00014215,2]
[361477748,1747581038375,-2649.7,0.00014215,2]
[361477750,1747581038384,-2649.7,0.00014215,2]
[361477752,1747581038393,-2649.7,0.00014215,2]
[361477754,1747581038402,-151.0,0.00014215,2]
[361477756,1747581038411,-176.968337,0.00014215,2]
[361477758,1747581038420,-151.0,0.00014215,2]
[361477760,1747581038429,-151.0,0.00014215,2]
[361477762,1747581038439,-151.0,0.00014215,2]
[361477764,1747581038447,-151.0,0.00014215,2]
[361477766,1747581038456,-587.0,0.00014235,2]
[361477768,1747581038466,-6633.02380595,0.00014245,2]
[361477770,1747581038475,-677.59,0.00014245,2]
[361477772,1747581038485,-279.909934,0.00014246,2]
[361477774,1747581038494,-183.62,0.00014246,2]
[361477776,1747581038503,-450.0,0.00014246,2]
[361477778,1747581038517,-450.0,0.00014246,2]
[361477780,1747581038530,-450.0,0.00014246,2]
[361477782,1747581038540,-450.0,0.00014246,2]
[361477784,1747581038550,-151.0,0.00014246,2]
[361477786,1747581038560,-450.0,0.00014246,2]
[361477788,1747581038569,-450.0,0.00014246,2]
[361477790,1747581038579,-151.0,0.00014246,2]
[361477792,1747581038588,-450.0,0.00014246,2]
[361477794,1747581038597,-151.0,0.00014246,2]
[361477796,1747581038607,-532.95237191,0.00014246,2]
[361477798,1747581038616,-450.0,0.00014246,2]
[361477800,1747581038625,-151.0,0.00014246,2]
[361477802,1747581038634,-151.0,0.00014246,2]
[361477804,1747581038643,-477.17,0.00014246,2]
[361477806,1747581038652,-450.0,0.00014246,2]
[361477808,1747581038662,-151.0,0.00014246,2]
[361477810,1747581038671,-151.0,0.00014246,2]
[361477812,1747581038680,-151.0,0.00014246,2]
[361477814,1747581038690,-450.0,0.00014246,2]
[361477816,1747581038699,-450.0,0.00014246,2]
[361477818,1747581038708,-867.57,0.00014246,2]
[361477820,1747581038719,-561.24,0.00014246,2]
[361477822,1747581038729,-969.45,0.00014246,2]
[361477824,1747581038738,-151.0,0.00014246,2]
[361477826,1747581038748,-151.0,0.00014246,2]
[361477828,1747581038757,-450.0,0.00014246,2]
[361477830,1747581038766,-450.0,0.00014246,2]
[361477832,1747581038775,-151.0,0.00014246,2]
[361477834,1747581038785,-2835.5,0.00014246,2]
[361477836,1747581038795,-5358.41,0.00014246,2]
[361477838,1747581038805,-450.0,0.00014246,2]
[361477840,1747581038814,-1124.46,0.00014246,2]
[361477842,1747581038824,-467.32,0.00014246,2]
[361477844,1747581038834,-1699.94,0.00014246,2]
[361477846,1747581038844,-2102.31,0.00014246,2]
[361477848,1747581038854,-450.0,0.00014246,2]
[361477850,1747581038863,-450.0,0.00014246,2]
[361477852,1747581038873,-450.0,0.00014246,2]
[361477854,1747581038882,-532.74,0.00014246,2]
[361477856,1747581038891,-450.0,0.00014246,2]
[361477858,1747581038900,-450.0,0.00014246,2]
[361477860,1747581038909,-450.0,0.00014246,2]
[361477862,1747581038918,-466.63,0.00014246,2]
[361477864,1747581038928,-450.0,0.00014246,2]
[361477866,1747581038937,-530.15,0.00014246,2]
[361477868,1747581038946,-450.0,0.00014246,2]
[361477870,1747581038955,-439.41,0.00014246,2]
[361477872,1747581038964,-400.29,0.00014246,2]
[361477874,1747581038974,-450.0,0.00014246,2]
[361477876,1747581038983,-704.0,0.00014246,2]
[361477879,1747581038993,-450.0,0.00014246,2]
[361477880,1747581039002,-846.34,0.00014246,2]
[361477883,1747581039011,-450.0,0.00014246,2]
[361477885,1747581039020,-450.0,0.00014246,2]
[361477886,1747581039030,-450.0,0.00014246,2]
[361477888,1747581039039,-450.0,0.00014246,2]
[361477891,1747581039049,-450.0,0.00014246,2]
[361477892,1747581039058,-450.0,0.00014246,2]
[361477895,1747581039067,-450.0,0.00014246,2]
[361477897,1747581039076,-1146.45,0.00014246,2]
[361477899,1747581039086,-1483.49,0.00014246,2]
[361477901,1747581039095,-450.0,0.00014246,2]
[361477903,1747581039107,-775.23,0.00014246,2]
[361477904,1747581039116,-450.0,0.00014246,2]
[361477906,1747581039126,-450.0,0.00014246,2]
[361477908,1747581039135,-250.0,0.00014376,2]
[361477922,1747581039246,-677.59,0.00014382,2]
[361477924,1747581039256,-677.59,0.00014382,2]
[361477926,1747581039265,-189.087624,0.00014383,2]
[361477928,1747581039274,-151.0,0.00014383,2]
[361477930,1747581039284,-450.0,0.00014383,2]
[361477932,1747581039294,-186.17,0.00014383,2]
[361477934,1747581039303,-151.0,0.00014383,2]
[361477936,1747581039315,-151.0,0.00014383,2]
[361477938,1747581039325,-546.69,0.00014383,2]
[361477940,1747581039334,-450.0,0.00014383,2]
[361477942,1747581039345,-677.457359,0.00014383,2]
[361477944,1747581039355,-677.457359,0.00014383,2]
[361477946,1747581039364,-151.0,0.00014383,2]
[361477948,1747581039373,-151.0,0.00014383,2]
[361477950,1747581039383,-815.327103,0.00014383,2]
[361477952,1747581039392,-815.327103,0.00014383,2]
[361477954,1747581039401,-151.0,0.00014383,2]
[361477956,1747581039411,-450.0,0.00014383,2]
[361477958,1747581039420,-450.0,0.00014383,2]
[361477960,1747581039429,-1356.411808,0.00014383,2]
[361477962,1747581039438,-1356.411808,0.00014383,2]
[361477964,1747581039447,-450.0,0.00014383,2]
[361477966,1747581039456,-535.36,0.00014383,2]
[361477968,1747581039465,-477.17,0.00014383,2]
[361477970,1747581039475,-450.0,0.00014383,2]
[361477972,1747581039484,-450.0,0.00014383,2]
[361477974,1747581039494,-450.0,0.00014383,2]
[361477976,1747581039503,-867.57,0.00014383,2]
[361477978,1747581039512,-969.45,0.00014383,2]
[361477980,1747581039522,-450.0,0.00014383,2]
[361477982,1747581039531,-450.0,0.00014383,2]
[361477984,1747581039540,-2835.5,0.00014383,2]
[361477986,1747581039550,-5358.41,0.00014383,2]
[361477988,1747581039560,-1124.46,0.00014383,2]
[361477990,1747581039569,-467.32,0.00014383,2]
[361477992,1747581039579,-1699.94,0.00014383,2]
[361477994,1747581039588,-2102.31,0.00014383,2]
[361477996,1747581039597,-450.0,0.00014383,2]
[361477998,1747581039607,-450.0,0.00014383,2]
[361478000,1747581039616,-450.0,0.00014383,2]
[361478002,1747581039626,-450.0,0.00014383,2]
[361478004,1747581039636,-450.0,0.00014383,2]
[361478006,1747581039646,-450.0,0.00014383,2]
[361478008,1747581039655,-450.0,0.00014383,2]
[361478010,1747581039664,-450.0,0.00014383,2]
[361478012,1747581039674,-450.0,0.00014383,2]
[361478014,1747581039683,-704.0,0.00014383,2]
[361478016,1747581039692,-478.66,0.00014383,2]
[361478018,1747581039701,-846.34,0.00014383,2]
[361478020,1747581039711,-450.0,0.00014383,2]
[361478022,1747581039720,-450.0,0.00014383,2]
[361478024,1747581039730,-450.0,0.00014383,2]
[361478026,1747581039739,-450.0,0.00014383,2]
[361478028,1747581039748,-450.0,0.00014383,2]
[361478031,1747581039757,-450.0,0.00014383,2]
[361478033,1747581039767,-450.0,0.00014383,2]
[361478035,1747581039776,-1146.45,0.00014383,2]
[361478037,1747581039786,-151.596678,0.00014383,2]
[361478039,1747581039795,-151.0,0.00014383,2]
[361478041,1747581039804,-1483.49,0.00014383,2]
[361478043,1747581039814,-450.0,0.00014383,2]
[361478047,1747581039824,-775.23,0.00014383,2]
[361478051,1747581039833,-450.0,0.00014383,2]
[361478055,1747581039842,-151.0,0.00014383,2]
[361478059,1747581039852,-151.0,0.00014383,2]
[361478062,1747581039861,-450.0,0.00014383,2]
[361478064,1747581039870,-215.25677807,0.000144,2]
[361478066,1747581039879,-207.4,0.000144,2]
[361478068,1747581039888,-677.59,0.00014519,2]
[361478070,1747581039897,-189.087624,0.0001452,2]
[361478072,1747581039907,-450.0,0.0001452,2]
[361478074,1747581039916,-154.971527,0.0001452,2]
[361478076,1747581039925,-154.971527,0.0001452,2]
[361478078,1747581039934,-450.0,0.0001452,2]
[361478080,1747581039944,-450.0,0.0001452,2]
[361478082,1747581039953,-151.0,0.0001452,2]
[361478084,1747581039963,-450.0,0.0001452,2]
[361478086,1747581039972,-450.0,0.0001452,2]
[361478089,1747581039981,-477.17,0.0001452,2]
[361478091,1747581039990,-450.0,0.0001452,2]
[361478092,1747581039999,-450.0,0.0001452,2]
[361478093,1747581040008,-450.0,0.0001452,2]
[361478094,1747581040017,-151.0,0.0001452,2]
[361478095,1747581040026,-867.57,0.0001452,2]
[361478096,1747581040035,-969.45,0.0001452,2]
[361478097,1747581040045,-450.0,0.0001452,2]
[361478098,1747581040054,-199.348031,0.0001452,2]
[361478099,1747581040062,-450.0,0.0001452,2]
[361478100,1747581040072,-2835.5,0.0001452,2]
[361478101,1747581040081,-5358.41,0.0001452,2]
[361478102,1747581040090,-1124.46,0.0001452,2]
[361478103,1747581040100,-467.32,0.0001452,2]
[361478104,1747581040112,-1699.94,0.0001452,2]
[361478105,1747581040122,-151.0,0.0001452,2]
[361478106,1747581040131,-2102.31,0.0001452,2]
[361478107,1747581040140,-200.780902,0.0001452,2]
[361478108,1747581040149,-450.0,0.0001452,2]
[361478109,1747581040159,-450.0,0.0001452,2]
[361478110,1747581040167,-450.0,0.0001452,2]
[361478111,1747581040176,-450.0,0.0001452,2]
[361478112,1747581040186,-450.0,0.0001452,2]
[361478113,1747581040195,-450.0,0.0001452,2]
[361478114,1747581040204,-450.0,0.0001452,2]
[361478115,1747581040214,-450.0,0.0001452,2]
[361478116,1747581040223,-450.0,0.0001452,2]
[361478117,1747581040231,-704.0,0.0001452,2]
[361478118,1747581040241,-846.34,0.0001452,2]
[361478119,1747581040250,-450.0,0.0001452,2]
[361478120,1747581040259,-450.0,0.0001452,2]
[361478121,1747581040268,-275.21,0.0001452,2]
[361478122,1747581040277,-151.0,0.0001452,2]
[361478123,1747581040286,-450.0,0.0001452,2]
[361478125,1747581040296,-450.0,0.0001452,2]
[361478127,1747581040305,-450.0,0.0001452,2]
[361478129,1747581040314,-450.0,0.0001452,2]
[361478131,1747581040323,-1146.45,0.0001452,2]
[361478133,1747581040333,-1483.49,0.0001452,2]
[361478135,1747581040343,-450.0,0.0001452,2]
[361478137,1747581040353,-775.23,0.0001452,2]
[361478139,1747581040362,-274.1,0.0001452,2]
[361478141,1747581040372,-450.0,0.0001452,2]
[361478143,1747581040382,-151.0,0.00014524,2]
[361478145,1747581040391,-151.0,0.00014524,2]
[361478147,1747581040400,-151.0,0.00014524,2]
[361478149,1747581040410,-295.301443,0.00014524,2]
[361478151,1747581040420,-677.59,0.00014566,2]
[361478153,1747581040429,-677.59,0.00014566,2]
[361478155,1747581040439,-677.59,0.00014566,2]
[361478157,1747581040448,-677.59,0.00014566,2]
[361478159,1747581040458,-677.64576437,0.00014566,2]
[361478161,1747581040467,-263.61989077,0.00014588,2]
[361478163,1747581040477,-160.0,0.00014595,2]
[361478165,1747581040486,-160.0,0.00014595,2]
[361478167,1747581040496,-160.0,0.00014595,2]
[361478169,1747581040505,-422.53311782,0.00014598,2]
[361478171,1747581040515,-160.0,0.00014598,2]
[361478173,1747581040524,-212.32903618,0.00014598,2]
[361478175,1747581040533,-160.0,0.00014598,2]
[361478177,1747581040543,-998.55070715,0.00014598,2]
[361478179,1747581040552,-314.4327999,0.00014598,2]
[361478181,1747581040561,-12636.50182523,0.00014598,2]
[361478183,1747581040571,-160.0,0.00014598,2]
[361478185,1747581040580,-500.0,0.00014611,2]
[361478187,1747581040590,-500.0,0.00014611,2]
[361478189,1747581040601,-500.0,0.00014611,2]
[361478191,1747581040610,-151.0,0.00014639,2]
[361478193,1747581040619,-151.0,0.00014639,2]
[361478195,1747581040628,-151.0,0.00014639,2]
[361478197,1747581040637,-261.719504,0.00014639,2]
[361478199,1747581040647,-151.0,0.00014639,2]
[361478201,1747581040656,-500.0,0.00014654,2]
[361478203,1747581040665,-500.0,0.00014654,2]
[361478205,1747581040675,-189.087624,0.00014657,2]
[361478207,1747581040684,-151.0,0.00014657,2]
[361478209,1747581040693,-151.0,0.00014657,2]
[361478211,1747581040705,-151.0,0.00014657,2]
[361478213,1747581040714,-559.39,0.00014657,2]
[361478215,1747581040723,-151.0,0.00014657,2]
[361478217,1747581040733,-450.0,0.00014657,2]
[361478219,1747581040744,-151.0,0.00014657,2]
[361478221,1747581040754,-509.24,0.00014657,2]
[361478223,1747581040763,-450.0,0.00014657,2]
[361478225,1747581040774,-450.0,0.00014657,2]
[361478227,1747581040784,-477.17,0.00014657,2]
[361478229,1747581040794,-151.0,0.00014657,2]
[361478231,1747581040804,-450.0,0.00014657,2]
[361478233,1747581040814,-450.0,0.00014657,2]
[361478235,1747581040823,-450.0,0.00014657,2]
[361478237,1747581040832,-867.57,0.00014657,2]
[361478239,1747581040841,-969.45,0.00014657,2]
[361478241,1747581040850,-450.0,0.00014657,2]
[361478243,1747581040859,-450.0,0.00014657,2]
[361478245,1747581040868,-2835.5,0.00014657,2]
[361478247,1747581040879,-5358.41,0.00014657,2]
[361478249,1747581040888,-1124.46,0.00014657,2]
[361478251,1747581040897,-467.32,0.00014657,2]
[361478253,1747581040906,-1699.94,0.00014657,2]
[361478255,1747581040915,-2102.31,0.00014657,2]
[361478257,1747581040924,-559.94,0.00014657,2]
[361478259,1747581040933,-450.0,0.00014657,2]
[361478261,1747581040942,-266.76,0.00014657,2]
[361478263,1747581040952,-450.0,0.00014657,2]
[361478265,1747581040962,-450.0,0.00014657,2]
[361478267,1747581040971,-450.0,0.00014657,2]
[361478269,1747581040981,-450.0,0.00014657,2]
[361478271,1747581040990,-450.0,0.00014657,2]
[361478273,1747581040999,-450.0,0.00014657,2]
[361478275,1747581041009,-704.0,0.00014657,2]
[361478277,1747581041018,-846.34,0.00014657,2]
[361478279,1747581041027,-450.0,0.00014657,2]
[361478281,1747581041036,-450.0,0.00014657,2]
[361478283,1747581041045,-283.13,0.00014657,2]
[361478285,1747581041055,-450.0,0.00014657,2]
[361478287,1747581041064,-450.0,0.00014657,2]
[361478288,1747581041073,-454.26,0.00014657,2]
[361478291,1747581041083,-1146.45,0.00014657,2]
[361478292,1747581041093,-1483.49,0.00014657,2]
[361478294,1747581041103,-450.0,0.00014657,2]
[361478296,1747581041116,-775.23,0.00014657,2]
[361478298,1747581041125,-175.55,0.00014657,2]
[361478300,1747581041134,-500.0,0.0001467,2]
[361478303,1747581041144,-500.0,0.0001467,2]
[361478304,1747581041154,-504.3942579,0.0001467,2]
[361478306,1747581041164,-505.67096782,0.0001467,2]
[361478308,1747581041173,-500.0,0.00014671,2]
[361478310,1747581041183,-500.0,0.0001468,2]
[361478312,1747581041192,-500.0,0.0001468,2]
[361478314,1747581041203,-500.0,0.0001468,2]
[361478316,1747581041212,-500.0,0.0001468,2]
[361478318,1747581041221,-500.0,0.0001468,2]
[361478320,1747581041231,-500.0,0.0001468,2]
[361478322,1747581041240,-500.0,0.0001468,2]
[361478324,1747581041250,-500.0,0.0001468,2]
[361478326,1747581041259,-500.98319267,0.0001468,2]
[361478329,1747581041269,-460.19158535,0.0001468,2]
[361478330,1747581041278,-500.0,0.00014681,2]
[361478333,1747581041289,-500.0,0.00014688,2]
[361478335,1747581041298,-500.0,0.00014688,2]
[361478337,1747581041307,-500.0,0.00014688,2]
[361478339,1747581041316,-500.0,0.00014688,2]
[361478341,1747581041326,-815.327103,0.00014693,2]
[361478343,1747581041335,-815.327103,0.00014693,2]
[361478345,1747581041344,-151.0,0.00014693,2]
[361478347,1747581041354,-6633.02380595,0.00014693,2]
[361478349,1747581041365,-151.0,0.000147,2]
[361478351,1747581041374,-500.0,0.0001472,2]
[361478353,1747581041383,-594.51216063,0.0001472,2]
[361478355,1747581041393,-151.0,0.0001472,2]
[361478357,1747581041402,-151.0,0.0001472,2]
[361478359,1747581041411,-500.0,0.00014725,2]
[361478361,1747581041420,-500.0,0.00014725,2]
[361478363,1747581041430,-151.0,0.0001473,2]